Cogmind - Beta 10.2 @@@ ROGUE MODE // 2020.11.12 @ 23:24:36 // Halloween2020/ForbiddenLore Player: WayneKnight Result: Self-destructed Performance ------------- Evolutions (3) 1500 Regions Visited (8) 1600 Robots Destroyed (128) 640 Value Destroyed (3931) 3931 Prototype IDs (31) 620 Alien Tech Used (0) 0 Bonus (1051) 1051 TOTAL SCORE: 9342 Bonus ------- High Alert Combat Kills 163 Follower Combat Kills 106 Entered Garrisons 200 Used RIF Installer 500 Aligned with FarCom 300 Friendly Fire -218 Cogmind --------- Core Integrity 509/700 Matter 152/300 Energy 290/290 System Corruption 3% Temperature Cool (0) Movement Rolling (140) Ox4 Location -7/Factory Parts ------- > --- POWER (1) -------- Improved Deuterium Engine > --- PROPULSION (3) --- Medium Treads Armored Huge Wheel > --- UTILITY (7) ------ Large Storage Unit High-capacity Storage Unit High-capacity Storage Unit High-capacity Storage Unit Experimental Sensor Array Improved Signal Interpreter > --- WEAPON (2) ------- Gauss Rifle Flak Gun > --- INVENTORY (34) --- Improved Ion Engine Light Treads Light Treads Light Treads Armored Huge Wheel Armored Huge Wheel Improved Airjet Large Storage Unit Improved Sensor Array Improved Sensor Array Transmission Jammer Improved Light Armor Plating Trap Reconfigurator Recalibrator Arc Projector AWS/Thermal Heavy Ion Cannon Plasma Cannon Heavy Assault Rifle Minigun Minigun High-powered Shotgun High-powered Shotgun Gauss Rifle Gauss Rifle Shock Bomb Launcher Missile Launcher Katana Peak State ------------ > --- POWER ------------ Nuclear Core > --- PROPULSION ------- Light Treads Armored Huge Wheel > --- UTILITY ---------- High-capacity Storage Unit High-capacity Storage Unit High-capacity Storage Unit Improved Signal Interpreter Transmission Jammer Improved Utility Shielding Medium Reactive Plating > --- WEAPON ----------- AWS/Thermal > --- INVENTORY -------- Improved Ion Engine Light Treads Light Treads Light Treads Armored Huge Wheel Armored Huge Wheel Large Storage Unit Large Storage Unit Improved Sensor Array Improved Sensor Array Experimental Sensor Array Hardened Medium Armor Plating Trap Reconfigurator Arc Projector Plasma Cannon Heavy Assault Rifle Minigun Minigun High-powered Shotgun High-powered Shotgun Gauss Rifle Shock Bomb Launcher Missile Launcher Katana [Rating: 51] Favorites ----------- Power Nuclear Core Engine Ion Engine Power Core Nuclear Core Propulsion Improved Treads Treads Improved Treads Leg Aluminum Leg Wheel Armored Huge Wheel Hover Unit Improved Airjet Flight Unit Improved Cesium-ion Thruster Utility Large Storage Unit Device Transmission Jammer Storage Large Storage Unit Processor Improved Signal Interpreter Protection Improved Light Armor Plating Weapon Autogun Energy Gun Spread Laser Energy Cannon Advanced Beam Cannon Ballistic Gun Autogun Launcher Grenade Launcher Slashing Weapon Katana Build | -11 -10 -10 -10 -9 -8 -8 -8 -7 ------- Run | Scr Mat Min Exi Min Mat Gar Mat Fac Slots Evolved 6 | . . . . . 4 . . 2 Power . | . . . . . . . . . Propulsion 1 | . . . . . 1 . . . Utility 5 | . . . . . 3 . . 2 Weapon . | . . . . . . . . . Parts Attached 134 | 2 9 4 . 4 34 10 33 38 Power 7 | . . 1 . . 3 . 1 2 Engine 4 | . . 1 . . 1 . . 2 Core 3 | . . . . . 2 . 1 . Reactor . | . . . . . . . . . Propulsion 29 | 2 2 . . 1 4 2 7 11 Treads 24 | 2 2 . . 1 4 2 7 6 Leg . | . . . . . . . . . Wheel 2 | . . . . . . . . 2 Hover 1 | . . . . . . . . 1 Flight 2 | . . . . . . . . 2 Utility 37 | . 2 . . . 11 . 8 16 Device 9 | . . . . . . . 1 8 Storage 10 | . 2 . . . 4 . 3 1 Processor 1 | . . . . . . . . 1 Hackware . | . . . . . . . . . Protection 17 | . . . . . 7 . 4 6 Artifact . | . . . . . . . . . Weapon 61 | . 5 3 . 3 16 8 17 9 Energy Gun 3 | . 1 . . . 1 . . 1 Energy Cannon 5 | . . . . . 2 . 3 . Ballistic Gun 36 | . 4 1 . 2 8 5 10 6 Ballistic Cannon . | . . . . . . . . . Launcher 9 | . . 2 . 1 2 3 1 . Special Weapon . | . . . . . . . . . Impact Weapon . | . . . . . . . . . Slashing Weapon 8 | . . . . . 3 . 3 2 Piercing Weapon . | . . . . . . . . . Special Melee Weapon . | . . . . . . . . . Unidentified Prototypes 3 | . . . . . 1 . . 2 Parts Lost 13 | . . 1 . 2 3 . 2 5 Power 3 | . . 1 . . 1 . . 1 Propulsion 6 | . . . . 1 2 . 2 1 Utility 2 | . . . . . . . . 2 Weapon 2 | . . . . 1 . . . 1 Highest Loss Streak 2 | . . 1 . 2 1 . 1 2 Average Slot Usage (%) 96 | . 92 99 71 87 99 100 99 92 Engine 6 | . 14 13 14 14 6 . . 5 Core 3 | . . . . . 2 9 9 1 Treads 24 | . 28 28 28 27 26 27 26 9 Device 3 | . . . . . . . 7 9 Storage 26 | . 21 28 28 28 27 27 27 24 Protection 9 | . . . . . 17 18 10 11 Energy Cannon 2 | . . . . . 1 4 7 . Ballistic Gun 12 | . 18 19 . 5 15 10 10 11 Launcher 1 | . . 8 . 10 . 2 . . Naked Turns . | . . . . . . . . . Heaviest Build 140 | 9 41 43 43 43 68 71 131 140 Greatest Support 68 | 40 46 46 46 46 68 63 63 60 Greatest Overweight (x) 5 | . . . . 1 1 1 2 5 Average Overweight (x) . | . . . . . . 1 1 3 Largest Inventory Capacity 34 | 6 16 16 16 16 22 22 28 34 Average Capacity 22 | 6 11 16 16 16 20 22 26 29 Most Carried 31 | 6 16 15 16 16 22 22 28 31 Average Carried 20 | 6 9 14 15 15 20 22 23 27 Final Capacity 34 | 6 16 16 16 16 22 22 28 34 Final Carried 31 | 6 15 15 16 13 22 22 27 31 Class Distribution -------------------- 73% | Hauler-Mutant 26% | Mutant Dominant Class ---------------- Mutant | -10/Materials Mutant | -10/Mines Mutant | -10/Exiles Mutant | -9/Mines Hauler-Mutant | -8/Materials Hauler-Mutant | -8/Garrison Hauler-Mutant | -8/Materials Hauler-Mutant | -7/Factory Resources | -11 -10 -10 -10 -9 -8 -8 -8 -7 ----------- Run | Scr Mat Min Exi Min Mat Gar Mat Fac Matter Collected 3346 | 206 127 252 . 184 837 381 682 677 Remotely . | . . . . . . . . . Salvage Created 4186 | 80 220 237 . 266 1282 437 909 755 Parts 275 | 2 24 32 . 28 69 26 46 48 Haulers Intercepted 1 | . . . . . 1 . . . Recyclers Shooed 3 | . . . . . 1 . 2 . Parts Field Recycled . | . . . . . . . . . Retrieved Matter . | . . . . . . . . . Parts Self-Destructed . | . . . . . . . . . Prevented . | . . . . . . . . . Kills | -11 -10 -10 -10 -9 -8 -8 -8 -7 ------- Run | Scr Mat Min Exi Min Mat Gar Mat Fac Combat Hostiles Destroyed 105 | . 7 14 . 15 19 14 19 17 Guns 62 | . 7 8 . . 15 4 11 17 Cannons 9 | . . . . . 1 2 6 . AOE 34 | . . 6 . 15 3 8 2 . Classes Destroyed 15 | 1 3 1 . 3 5 . . 2 Worker 3 | . . . . 1 1 . . 1 Builder 3 | . . . . . 1 . 1 1 Tunneler 2 | . . 1 . . 1 . . . Hauler 1 | . . . . . 1 . . . Recycler 4 | 1 . . . . 2 . 1 . Operator 1 | . . . . . . . . 1 Watcher 8 | . 2 . . . 3 . 3 . Swarmer 34 | . 3 12 . 7 . 4 5 3 Grunt 38 | . 4 2 . 6 7 7 7 5 Brawler 4 | . . . . 1 1 1 . 1 Duelist 1 | . . . . . 1 . . . Protector 1 | . . . . 1 . . . . Sentry 20 | . . . . . 9 2 6 3 Hunter 4 | . . . . . 1 . 1 2 Programmer 3 | . . . . . . . . 3 Thug 1 | . . . . 1 . . . . Best Kill Streak 7 | 1 3 3 . 5 7 4 6 5 Combat Bots Only 5 | . 3 3 . 5 5 4 5 5 Max Kills in Single Turn 3 | 1 1 3 . 3 2 3 2 1 Gunslinging 1 | . . . . . . . 1 . Exploded 3 | . . 3 . 3 2 3 2 . Melee . | . . . . . . . . . Uniques/NPCs Destroyed . | . . . . . . . . . Combat | -11 -10 -10 -10 -9 -8 -8 -8 -7 -------- Run | Scr Mat Min Exi Min Mat Gar Mat Fac Damage Taken 5823 | . 232 144 . 364 1281 549 1380 1873 Core 699 | . 71 26 . 127 91 44 149 191 Absorbed by Shields . | . . . . . . . . . Core Remaining (%) 52 | 100 . . . 10 . . 48 . Volleys Fired 309 | 6 37 13 . 15 83 29 73 53 Largest 2 | 2 2 2 . 1 2 2 2 2 Hottest 93 | 60 85 46 . 30 91 91 93 56 Shots Fired 589 | 11 70 20 . 14 162 48 144 120 Gun 493 | 11 70 17 . . 142 31 102 120 Cannon 71 | . . . . . 17 13 41 . Launcher 25 | . . 3 . 14 3 4 1 . Special . | . . . . . . . . . Kinetic 450 | 6 46 17 . . 142 31 102 106 Thermal 114 | 5 24 . . . 17 13 41 14 Explosive 25 | . . 3 . 14 3 4 1 . Electromagnetic . | . . . . . . . . . Robot Hit Streak 23 | 5 10 11 . 6 21 5 22 23 Robot Miss Streak 11 | 5 11 4 . 2 5 2 6 11 Penetration Max 1 | . . . . . . . . 1 Secondary Targets 4 | . . . . . . . 1 3 Max Gunslinging Chain 1 | . . . . . . . 1 1 Autonomous 14 | . . . . . . . . 14 Shots Hit Robots 449 | 6 51 14 . 8 129 33 108 100 Core Hits 249 | 2 24 18 . 31 53 23 42 56 Critical Hits 10 | . 1 . . . 1 1 7 . Critical Kills 4 | . 1 . . . . . 3 . Critical Parts Destroyed 4 | . . . . . 1 . 3 . Melee Attacks 16 | . . . . . 4 . 9 3 Impact . | . . . . . . . . . Slashing 16 | . . . . . 4 . 9 3 Piercing . | . . . . . . . . . Sneak Attacks 2 | . . . . . 1 . 1 . Combat Hostiles . | . . . . . . . . . Follow-up Attacks . | . . . . . . . . . Damage Inflicted 10693 | 67 403 522 . 1163 2844 1147 2310 2237 Guns 6325 | 67 385 189 . . 1796 332 1327 2229 Cannons 1025 | . . . . . 274 199 552 . Explosions 2875 | . . 277 . 1132 618 616 232 . Melee 251 | . . . . . 136 . 115 . Ramming 217 | . 18 56 . 31 20 . 84 8 Kinetic 5737 | 33 242 189 . . 1796 332 1327 1818 Thermal 1613 | 34 143 . . . 274 199 552 411 Explosive 2875 | . . 277 . 1132 618 616 232 . Electromagnetic . | . . . . . . . . . Impact . | . . . . . . . . . Slashing 251 | . . . . . 136 . 115 . Piercing . | . . . . . . . . . Highest Corruption 14 | . 4 4 4 14 1 1 1 2 Average Corruption 2 | . 3 4 4 6 1 1 1 1 Corruption Purged . | . . . . . . . . . Effects 102 | . 8 29 17 21 10 1 15 1 Message Errors 33 | . 1 7 6 6 6 . 6 1 Matter Fused 14 | . 2 7 1 4 . . . . Heat Flow Errors 8 | . 2 1 4 1 . . . . Energy Discharges 14 | . 3 1 3 3 2 . 2 . Data Loss (minor) 26 | . . 11 3 5 1 1 5 . Misdirections 1 | . . . . 1 . . . . Targeting Errors 4 | . . 2 . . 1 . 1 . Weapon Failures 2 | . . . . 1 . . 1 . Overload Shots . | . . . . . . . . . Overflow Damage 184 | . . 1 . . 112 8 63 . Projectiles . | . . . . . . . . . Explosions 49 | . . 1 . . 40 8 . . Melee 135 | . . . . . 72 . 63 . Knockbacks 2 | . . 1 . . . . 1 . Impact 2 | . . 1 . . . . 1 . Kinetic . | . . . . . . . . . Secondary . | . . . . . . . . . Self-Inflicted Damage 76 | . . 13 . 30 . 21 12 . Shots 6 | . . 2 . 2 . 1 1 . Rammed 21 | . 3 6 . 3 2 . 6 1 Targets Rammed 23 | . 3 7 . 3 3 . 6 1 Kicked . | . . . . . . . . . Crushed 2 | . . 1 . . 1 . . . Highest Temperature 331 | 20 300 234 214 195 331 265 288 26 Average Temperature 77 | 15 88 55 84 75 65 135 76 8 Received Heat Transfer 1734 | . 51 27 . 42 468 216 504 426 Effects 6 | . 1 . . . . 3 2 . Interference 6 | . 1 . . . . 3 2 . Siege Activations . | . . . . . . . . . Robots Corrupted . | . . . . . . . . . Combat Hostiles . | . . . . . . . . . Parts Fried . | . . . . . . . . . Impact Corruptions 1 | . . . . . . . 1 . Robots Melted . | . . . . . . . . . Combat Hostiles . | . . . . . . . . . Parts Melted 3 | . . . . . 1 . 1 1 Heat Transferred 2522 | 75 190 . . . 481 333 925 518 Parts Sabotaged . | . . . . . . . . . Parts Stolen . | . . . . . . . . . Parts Stripped . | . . . . . . . . . Power Chain Reactions . | . . . . . . . . . Missiles Intercepted . | . . . . . . . . . Alert | -11 -10 -10 -10 -9 -8 -8 -8 -7 ------- Run | Scr Mat Min Exi Min Mat Gar Mat Fac Peak Influence 606 | 5 115 259 . 392 288 539 606 447 Initial 275 | . 3 44 . . 84 92 262 275 Average 147 | 2 31 132 . 200 89 390 122 289 Maximum Alert Level 2 | . . 1 . 1 1 2 2 2 Low Security (%) 62 | 100 100 62 . 28 90 12 69 1 Level 1 33 | . . 37 . 71 9 34 26 93 Level 2 4 | . . . . . . 52 3 4 Level 3 . | . . . . . . . . . Level 4 . | . . . . . . . . . Level 5 . | . . . . . . . . . High Security . | . . . . . . . . . Max Security . | . . . . . . . . . Squads Dispatched 9 | . . . . 1 . . 3 5 Investigation 1 | . . . . . . . 1 . Extermination 3 | . . . . . . . . 3 Reinforcement 3 | . . . . . . . 2 1 Assault 1 | . . . . 1 . . . . Garrison 1 | . . . . . . . . 1 Intercept . | . . . . . . . . . Construction Impeded . | . . . . . . . . . Haulers Reinforced . | . . . . . . . . . Stealth | -11 -10 -10 -10 -9 -8 -8 -8 -7 --------- Run | Scr Mat Min Exi Min Mat Gar Mat Fac Distress Signals 10 | . . . . . 6 . 1 3 Communications Jammed 9 | . . . . . . . 9 . Distress Signals 9 | . . . . . . . 9 . Times Spotted 162 | . 17 16 . 18 35 12 40 24 Peak Tracking Total 7 | . 3 3 . 5 6 7 7 6 Tactical Retreats 19 | . . 1 . . 6 . 9 3 Traps | -11 -10 -10 -10 -9 -8 -8 -8 -7 ------- Run | Scr Mat Min Exi Min Mat Gar Mat Fac Traps Triggered 9 | . 3 . . . 1 1 4 . Indirectly . | . . . . . . . . . Trap Hack Attempts . | . . . . . . . . . Triggered . | . . . . . . . . . Disarmed . | . . . . . . . . . Reprogrammed . | . . . . . . . . . Reused . | . . . . . . . . . Traps Extracted . | . . . . . . . . . Installed . | . . . . . . . . . Triggered . | . . . . . . . . . Machines | -11 -10 -10 -10 -9 -8 -8 -8 -7 ---------- Run | Scr Mat Min Exi Min Mat Gar Mat Fac Machines Disabled 2 | . . . . 2 . . . . Max in Single Turn 1 | . . . . 1 . . . . Machines Sabotaged . | . . . . . . . . . Garrisons Compromised . | . . . . . . . . . Overloaded Fab Kills . | . . . . . . . . . Fab Network Shutdowns . | . . . . . . . . . Hacking | -11 -10 -10 -10 -9 -8 -8 -8 -7 --------- Run | Scr Mat Min Exi Min Mat Gar Mat Fac Machines Accessed 37 | . 5 . 2 . 15 . 11 4 Terminals 27 | . 5 . . . 12 . 7 3 Fabricators . | . . . . . . . . . Repair Stations 2 | . . . . . . . 2 . Recycling Units 4 | . . . . . 1 . 2 1 Scanalyzers 1 | . . . . . 1 . . . Garrison Access 1 | . . . . . 1 . . . Total Hacks 122 | . 20 . 2 . 65 . 26 9 Successful 69 | . 11 . 2 . 42 . 12 2 Failed 53 | . 9 . . . 23 . 14 7 Catastrophic 5 | . . . . . 3 . 1 1 Database Lockouts . | . . . . . . . . . Manual 70 | . 18 . 1 . 32 . 13 6 Terminals 94 | . 20 . . . 50 . 17 7 Fabricators . | . . . . . . . . . Repair Stations 5 | . . . . . . . 5 . Recycling Units 7 | . . . . . 1 . 4 2 Scanalyzers 12 | . . . . . 12 . . . Garrison Access 2 | . . . . . 2 . . . Terminal Hacks 27 | . 3 . 2 . 19 . 3 . Record 1 | . . . 1 . . . . . Part Schematic 2 | . . . . . 2 . . . Robot Analysis 4 | . 2 . . . 2 . . . Prototype ID Bank 2 | . 1 . . . 1 . . . Alert Level 4 | . . . . . 4 . . . Unreport Threat 2 | . . . . . 2 . . . Locate Traps 4 | . . . . . 2 . 2 . Hauler Manifests 1 | . . . . . 1 . . . Zone Layout 6 | . . . . . 5 . 1 . EX-Prototype ID Bank 1 | . . . 1 . . . . . Fabricator Hacks . | . . . . . . . . . Repair Station Hacks 2 | . . . . . . . 2 . Scan Component 2 | . . . . . . . 2 . Recycling Unit Hacks 6 | . . . . . 1 . 4 1 Report Inventory 4 | . . . . . 1 . 2 1 Retrieve Components 2 | . . . . . . . 2 . Scanalyzer 12 | . . . . . 12 . . . Insert Component 6 | . . . . . 6 . . . Analyze 6 | . . . . . 6 . . . Garrison Access Hacks 1 | . . . . . 1 . . . Unlock Access 1 | . . . . . 1 . . . Unauthorized Hacks 21 | . 8 . . . 9 . 3 1 Terminals 21 | . 8 . . . 9 . 3 1 Track 7 | . 2 . . . 4 . 1 . Assimilate 2 | . 1 . . . 1 . . . Botnet 10 | . 3 . . . 4 . 2 1 Operators 2 | . 2 . . . . . . . Fabricators . | . . . . . . . . . Repair Stations . | . . . . . . . . . Recycling Units . | . . . . . . . . . Scanalyzers . | . . . . . . . . . Garrison Access . | . . . . . . . . . Data Cores Recovered . | . . . . . . . . . Used . | . . . . . . . . . Hacking Detections 32 | . 5 . . . 14 . 9 4 Full Trace Events 1 | . . . . . . . 1 . Feedback Events . | . . . . . . . . . Feedback Blocked . | . . . . . . . . . Robot Schematics Acquired . | . . . . . . . . . Robots Built . | . . . . . . . . . Matter . | . . . . . . . . . Time . | . . . . . . . . . Total Robot Build Rating . | . . . . . . . . . Part Schematics Acquired 8 | . . . . . 8 . . . Parts Built . | . . . . . . . . . Matter . | . . . . . . . . . Time . | . . . . . . . . . Total Part Build Rating . | . . . . . . . . . Parts Repaired . | . . . . . . . . . Time . | . . . . . . . . . Parts Recycled . | . . . . . . . . . Recycled Matter . | . . . . . . . . . Retrieved Matter . | . . . . . . . . . Retrieved Components 16 | . . . . . . . 16 . Parts Scanalyzed 6 | . . . . . 6 . . . Part Schematics Acquired 6 | . . . . . 6 . . . Parts Damaged . | . . . . . . . . . Bothacking | -11 -10 -10 -10 -9 -8 -8 -8 -7 ------------ Run | Scr Mat Min Exi Min Mat Gar Mat Fac Used RIF Installer 1 | . . . . . . 1 . . Robots Hacked . | . . . . . . . . . Non-combat . | . . . . . . . . . Combat . | . . . . . . . . . Robot Hacks Applied . | . . . . . . . . . Relay Couplers Released . | . . . . . . . . . Robots Rewired . | . . . . . . . . . Allies Hacked . | . . . . . . . . . Hacks Repelled . | . . . . . . . . . Allies | -11 -10 -10 -10 -9 -8 -8 -8 -7 -------- Run | Scr Mat Min Exi Min Mat Gar Mat Fac Total Allies 2 | . . 1 . 1 . . . . Largest Group 1 | . . 1 . 1 . . . . Highest-Rated Group 31 | . . 31 . 31 . . . . Highest-Rated Ally 31 | . . 31 . 31 . . . . Total Orders . | . . . . . . . . . Ally Attacks 19 | . . 4 . 15 . . . . Total Damage 378 | . . 84 . 294 . . . . Kills 6 | . . 3 . 3 . . . . Allies Corrupted . | . . . . . . . . . Allies Melted . | . . . . . . . . . Intel | -11 -10 -10 -10 -9 -8 -8 -8 -7 ------- Run | Scr Mat Min Exi Min Mat Gar Mat Fac Robot Analysis Total 4 | . 2 . . . 2 . . . Derelict Logs Recovered 3 | . . 1 . 2 . . . . Drone Launches . | . . . . . . . . . Drone Recoveries . | . . . . . . . . . Exploration | -11 -10 -10 -10 -9 -8 -8 -8 -7 ------------- Run | Scr Mat Min Exi Min Mat Gar Mat Fac Turns Passed 14213 | 43 1199 1215 551 747 3564 667 4260 1967 Spaces Moved 5825 | 20 483 725 340 427 1726 300 907 897 Core . | . . . . . . . . . Treads 5195 | 4 483 725 340 427 1726 300 907 283 Legs 16 | 16 . . . . . . . . Wheels 614 | . . . . . . . . 614 Hover . | . . . . . . . . . Flight . | . . . . . . . . . Fastest Speed 120 | 120 160 160 160 160 155 180 180 140 Average Speed 165 | 128 160 160 160 160 161 180 182 166 Slowest Speed 260 | 160 160 160 160 180 180 180 200 260 Overloaded Moves . | . . . . . . . . . Propulsion Burnouts . | . . . . . . . . . Robots Hopped . | . . . . . . . . . Cave-ins Triggered 1 | . . . . 1 . . . . Exploration Rate (%) 57 | 4 63 99 71 46 83 49 73 25 Regions Visited 8 Branch Regions 3 Pre-discovered Areas 1 | . . . 1 . . . . . Known Exits Taken 1 | . . . . . 1 . . . Unknown Exits Taken 6 | 1 1 1 1 1 . . 1 . Scrap Searched 2 | . . 1 . 1 . . . . Spaces Dug 12 | . . . . . 2 . 7 3 Terrain Destroyed 258 | . . 24 . 129 23 58 21 3 Melee 12 | . . . . . 2 . 7 3 Projectile 2 | . . . . . . 2 . . AOE 244 | . . 24 . 129 21 56 14 . Terrain Rammed . | . . . . . . . . . Walls Destroyed . | . . . . . . . . . Machines Disabled . | . . . . . . . . . Actions | -11 -10 -10 -10 -9 -8 -8 -8 -7 --------- Run | Scr Mat Min Exi Min Mat Gar Mat Fac Total 9828 | 27 854 758 352 473 2375 382 3352 1255 Wait 3378 | . 296 9 . 24 475 41 2305 228 Move 5815 | 19 482 724 339 425 1725 298 906 897 Hop . | . . . . . . . . . Pick Up 62 | . 13 1 4 1 24 . 8 11 Fast Attach 25 | . 3 . . . 6 . 3 13 Attach 22 | . . 1 . 4 6 . 3 8 Detach 13 | . 2 . 2 . 3 . 1 5 Swap 87 | 2 6 3 . . 22 10 27 17 Drop 75 | . 12 . 7 . 24 2 11 19 Fire 309 | 6 37 13 . 15 83 29 73 53 Melee 16 | . . . . . 4 . 9 3 Ram . | . . . . . . . . . Kick . | . . . . . . . . . Crush 23 | . 3 7 . 3 3 . 6 1 Escape Stasis 3 | . . . . 1 . 2 . . Rewire . | . . . . . . . . . Trap . | . . . . . . . . . Miscellaneous . | . . . . . . . . . Route ------- -11/Scrapyard -10/Materials (discovered 2 exits: [*Mat] / [*Min]) -10/Mines (discovered 3 exits: [*Mat x2] / *Exi) -10/Exiles -9/Mines -8/Materials (discovered 4 exits: *Fac x2 / [*Sto] / Gar) -8/Garrison (discovered 2 exits: *Mat x2) -8/Materials (discovered 2 exits: *Fac x2) -7/Factory (discovered 1 exit: Low) History --------- Turn | Location | Event 14 | -11/Scrapyard | Discovered new exit (range 3) 44 | -11/Scrapyard | Entered Materials 305 | -10/Materials | Build established: Mutant 750 | -10/Materials | Discovered new exit (range 14) 863 | -10/Materials | Discovered new exit (range 16) 1243 | -10/Materials | Entered Mines 1275 | -10/Mines | Learned Materials terminal intel 1406 | -10/Mines | Deemed a non-threat by the Exiles lab entrance 1406 | -10/Mines | Discovered new exit (range 5) 1561 | -10/Mines | Discovered new exit (range 8) 1863 | -10/Mines | Found a damaged Exp. Sensor Array with a note attached 1866 | -10/Mines | Found Prototype Device 1975 | -10/Mines | Received a Mining Laser from a helpful Derelict 2070 | -10/Mines | Discovered new exit (range 7) 2458 | -10/Mines | Entered Exiles 2511 | -10/Exiles | Met 8R-AWN 2537 | -10/Exiles | Met EX-HEX 2622 | -10/Exiles | Met EX-DEC 2729 | -10/Exiles | Learned location of Zion (-6) 2769 | -10/Exiles | Met EX-BIN 2788 | -10/Exiles | Aligned with FarCom system 2790 | -10/Exiles | Given EX-Vault access code 2826 | -10/Exiles | Opened EX-Vault 2838 | -10/Exiles | Found Lightpack 2.0 2847 | -10/Exiles | Found AWS/Thermal 2852 | -10/Exiles | Found Trap Reconfigurator 2883 | -10/Exiles | Warned to stay clear of 0b10 Research branches 2992 | -10/Exiles | Discovered new exit (range 12) 3009 | -10/Exiles | Stole three prototypes: Lightpack 2.0, AWS/Thermal, Trap Reconfigurator 3009 | -10/Exiles | Entered Mines 3243 | -9/Mines | Learned Materials security intel 3273 | -9/Mines | Met a Derelict testing a Signal Generator 3406 | -9/Mines | Core integrity fell below 50% 3491 | -9/Mines | Discovered new exit (range 6) 3603 | -9/Mines | Crushed by falling debris 3604 | -9/Mines | Core integrity fell below 20% 3604 | -9/Mines | System corruption reached 10% 3756 | -9/Mines | Entered Materials 3756 | -8/Materials | Evolved 4 slots: Propulsion x1, Utility x3 3758 | -8/Materials | Loaded intel: 12 terminal locations 4056 | -8/Materials | Build established: Hauler-Mutant 4451 | -8/Materials | Discovered new exit (range 16) 6019 | -8/Materials | Discovered new exit (range 4) 6412 | -8/Materials | Identified Exp. Sensor Array 6781 | -8/Materials | Discovered new exit (range 10) 7318 | -8/Materials | Identified exit to Garrison 7320 | -8/Materials | Entered Garrison 7470 | -8/Garrison | Triggered checkpoint 7569 | -8/Garrison | Discovered new exit (range 9) 7872 | -8/Garrison | Triggered checkpoint 7948 | -8/Garrison | Discovered new exit (range 12) 7978 | -8/Garrison | Installed Relay Interface Framework 7987 | -8/Garrison | Entered Materials 10867 | -8/Materials | Discovered new exit (range 9) 12136 | -8/Materials | Core integrity fell below 50% 12174 | -8/Materials | Discovered new exit (range 16) 12247 | -8/Materials | Entered Factory 12247 | -7/Factory | Evolved 2 slots: Utility x2 12248 | -7/Factory | Identified exit to Lower Caves 12249 | -7/Factory | FarCom data flow suspended 14208 | -7/Factory | Garrison activated, responded to threat 14214 | -7/Factory | Self-destructed Last Messages --------------- 14089_ R-06 Scavenger collects Gravmag System. 14091_ K-01 Serf collects debris. 14093_ R-06 Scavenger collects Target Analyzer. 14095_ R-06 Scavenger collects Shock Rifle. 14148_ Acquired 43 matter. 14161_ Penetrated by Slug. 14163_ K-01 Serf cleans the Assembly Bed. 14164_ Penetrated by Slug. 14167_ Slug penetrates H-55 Commando. 14167_ K-01 Serf destroyed. 14175_ H-55 Commando destroyed. 14180_ Acquired 48 matter. 14183_ Acquired Gauss Rifle. 14187_ R-06 Scavenger collects Lgt. Nuclear Core. 14191_ R-06 Scavenger collects Unknown Leg. 14195_ W-25 Informer sends out distress signal. 14202_ Imp. Light Armor Plating destroyed. 14208_ P-60 Hacker calls for garrison reinforcements. 14208_ ALERT: Activating Garrison Access F002. 14214_ Z2XB/ENFZ:PRD4UTDQCU#3OOSM7